bitfinex/quotes_BTCUSD_20220207
["timestamp","ask_amount","ask_price","bid_price","bid_amount"]
[1644204554122,0.32704,42854.0,42833.0,0.85]
[1644204554123,0.327179,42853.0,42833.0,0.85]
[1644204554324,0.04130487,42852.0,42851.0,0.05]
[1644204554516,0.00108992,42854.0,42851.0,0.02830056]
[1644204554717,0.05,42852.0,42836.0,0.68678876]
[1644204554963,0.05,42850.0,42832.0,0.01992189]
[1644204555159,0.05,42842.0,42835.0,0.18678876]
[1644204555357,0.67370643,42841.0,42835.0,0.22409]
[1644204555558,0.73342245,42840.0,42836.0,0.08963]
[1644204555762,0.327178,42838.0,42836.0,0.08963]
[1644204555958,0.327178,42838.0,42819.0,0.27541718]
[1644204555959,0.34328417,42837.0,42819.0,0.27541718]
[1644204556163,0.34328417,42837.0,42801.0,0.15]
[1644204556166,0.05,42829.0,42820.0,0.23353]
[1644204556359,0.38393559,42828.0,42821.0,0.327178]
[1644204556560,0.14843306,42835.0,42822.0,0.23352]
[1644204556561,0.03337956,42823.0,42822.0,0.23352]
[1644204556762,0.25168857,42814.0,42808.0,0.18678876]
[1644204556965,0.25168857,42814.0,42808.0,0.2336]
[1644204556966,0.03911926,42812.0,42808.0,0.2336]
[1644204557159,0.03911926,42812.0,42798.0,0.08991]
[1644204557160,0.5381,42809.0,42798.0,0.08991]
[1644204557360,0.5381,42809.0,42798.0,0.0002]
[1644204557361,0.62450772,42801.0,42798.0,0.0002]
[1644204557563,0.58016962,42799.0,42798.0,0.0002]
[1644204557760,0.58016962,42799.0,42798.0,0.0115]
[1644204557761,0.76486131,42799.0,42798.0,0.0115]
[1644204557960,0.09583467,42797.0,42790.0,0.0003]
[1644204558161,0.09583467,42797.0,42794.0,0.05]
[1644204558162,0.00742235,42797.0,42794.0,0.05]
[1644204558360,0.05,42832.0,42795.0,0.67162152]
[1644204558361,0.062,42799.0,42795.0,0.67162152]
[1644204558563,0.043,42832.0,42795.0,0.67162152]
[1644204558564,0.0195617,42806.0,42799.0,0.05]
[1644204558827,0.0502,42867.0,42819.0,0.04]
[1644204558828,0.1171,42843.0,42819.0,0.04]
[1644204559022,0.0002,42867.0,42805.0,1.5871]
[1644204559023,0.09416136,42850.0,42842.0,0.05]
[1644204559226,0.0002,42867.0,42834.0,0.327178]
[1644204559227,0.01,42863.0,42849.0,0.05]
[1644204559422,0.08971,42866.0,42850.0,1.66381495]
[1644204559423,9.92e-06,42851.0,42850.0,1.66381495]
[1644204559625,0.0002,42867.0,42852.0,0.327023]
[1644204559821,0.0002,42867.0,42866.0,0.326904]
[1644204560025,0.0002,42867.0,42866.0,0.369904]
[1644204560228,5.18474331,42867.0,42866.0,0.326904]
[1644204560422,0.0999,42860.0,42853.0,0.042]
[1644204560623,2.55474331,42867.0,42853.0,0.042]
[1644204560624,0.08216317,42855.0,42853.0,0.042]
[1644204560823,0.01,42854.0,42852.0,0.092]
[1644204561023,0.23553,42854.0,42852.0,0.03664254]
[1644204561226,0.23553,42854.0,42830.0,0.19705308]
[1644204561227,0.1913741,42833.0,42830.0,0.19705308]
[1644204561435,0.13532,42854.0,42833.0,0.04]
[1644204561629,0.01,42866.0,42832.0,1.049]
[1644204561630,0.01,42849.0,42848.0,0.02081517]
[1644204561829,0.0502,42867.0,42827.0,0.043]
[1644204561830,0.05,42850.0,42827.0,0.043]
[1644204562025,0.06,42855.0,42805.0,0.05]
[1644204562026,0.01,42818.0,42805.0,0.05]
[1644204562460,0.5381,42842.0,42805.0,0.05]
[1644204562461,0.043,42825.0,42816.0,0.85]
[1644204562660,0.043,42831.0,42830.0,0.19]
[1644204562861,0.053,42831.0,42830.0,0.19]
[1644204563161,0.043,42831.0,42830.0,0.19]
[1644204563460,0.19363683,42837.0,42830.0,0.24]
[1644204563461,0.09404709,42837.0,42830.0,0.24]
[1644204563658,0.043,42841.0,42830.0,0.24]
[1644204563659,0.01,42836.0,42830.0,0.24]
[1644204563860,0.01,42831.0,42830.0,0.19]
[1644204564062,0.380183,42831.0,42830.0,0.19]
[1644204564260,0.75303939,42831.0,42830.0,0.19]
[1644204564459,0.80303939,42831.0,42830.0,0.19]
[1644204564863,0.380183,42831.0,42830.0,0.19]
[1644204565261,0.380183,42831.0,42830.0,0.146696]
[1644204565561,0.918283,42831.0,42830.0,0.06786849]
[1644204565760,1.29419905,42831.0,42830.0,0.06786849]
[1644204565959,1.29419905,42831.0,42807.0,0.042]
[1644204565960,1.05994305,42831.0,42807.0,0.042]
[1644204566210,0.05,42828.0,42807.0,0.042]
[1644204566404,0.34114299,42822.0,42809.0,0.20702686]
[1644204566604,0.74691437,42821.0,42809.0,0.20702686]
[1644204566802,0.043,42820.0,42809.0,0.20702686]
[1644204567203,0.08405246,42818.0,42807.0,0.027]
[1644204567409,0.85,42809.0,42778.0,0.05]
[1644204567605,0.74693026,42808.0,42787.0,0.05]
[1644204567805,0.70914502,42807.0,42787.0,0.05]
[1644204568006,0.80214502,42807.0,42805.0,0.00064482]
[1644204568303,0.93114502,42807.0,42805.0,4.82e-06]
[1644204568503,0.65918936,42806.0,42805.0,4.82e-06]
[1644204568703,1.24028936,42806.0,42805.0,4.82e-06]
[1644204569105,1.24028936,42806.0,42772.0,0.06100218]
[1644204569106,1.24028936,42806.0,42776.0,0.05]
[1644204569406,0.327183,42800.0,42784.0,0.24723728]
[1644204569605,0.5381,42805.0,42784.0,0.19753728]
[1644204569606,0.85,42797.0,42784.0,0.19753728]
[1644204569806,0.347375,42796.0,42784.0,0.19753728]
[1644204570053,0.327183,42795.0,42784.0,0.19753728]
[1644204570252,0.327183,42795.0,42772.0,0.06100218]
[1644204570253,0.043,42794.0,42778.0,0.05]
[1644204570454,0.043,42794.0,42772.0,0.06100218]
[1644204570456,0.05,42785.0,42772.0,0.06100218]
[1644204570656,0.0999,42791.0,42772.0,0.06100218]
[1644204570657,0.33917511,42783.0,42772.0,0.06100218]
[1644204570853,0.370183,42782.0,42772.0,0.06100218]
[1644204571053,0.043,42781.0,42775.0,0.0497]
[1644204571251,0.043,42780.0,42776.0,0.2113932]
[1644204571453,0.043,42779.0,42778.0,0.0497]
[1644204571651,0.0433,42779.0,42776.0,0.0005291]
[1644204571852,0.05,42791.0,42778.0,0.13463]
[1644204572051,0.043,42790.0,42781.0,0.0497]
[1644204572255,0.87331,42809.0,42788.0,0.0497]
[1644204572256,0.043,42789.0,42788.0,0.0497]
[1644204572453,0.5381,42804.0,42789.0,0.1346]
[1644204572454,0.0053,42804.0,42789.0,0.1346]
[1644204572656,0.0053,42804.0,42797.0,0.0447]
[1644204572657,0.043,42798.0,42797.0,0.0447]
[1644204572852,0.043,42798.0,42774.0,0.05]
[1644204572853,0.1429,42804.0,42794.0,0.0447]
[1644204573054,0.0999,42804.0,42794.0,0.17928]
[1644204573353,0.23870507,42807.0,42795.0,0.23367]
[1644204573354,0.08949146,42799.0,42795.0,0.23367]
[1644204573553,0.00529921,42796.0,42795.0,0.23367]
[1644204574202,0.24400428,42807.0,42794.0,0.29088472]
[1644204574400,0.02,42796.0,42795.0,0.27283464]
[1644204574603,0.011,42814.0,42796.0,0.85]
[1644204574803,0.011,42814.0,42794.0,0.02188393]
[1644204574804,0.00529921,42811.0,42801.0,0.04470079]
[1644204575000,0.001,42835.0,42795.0,0.04470079]
[1644204575001,0.05,42818.0,42795.0,0.04470079]
[1644204575203,0.29478298,42814.0,42801.0,0.19970438]
[1644204575399,0.5452304,42822.0,42801.0,0.24440517]
[1644204575400,0.33564635,42822.0,42801.0,0.24440517]
[1644204575603,0.00529921,42812.0,42801.0,0.19619815]
[1644204575903,0.05,42817.0,42795.0,0.02188429]
[1644204575904,0.00529921,42805.0,42795.0,0.02188429]
[1644204576301,0.00529921,42805.0,42801.0,0.026]
[1644204576504,0.327183,42804.0,42801.0,0.026]
[1644204576703,0.00529921,42805.0,42803.0,0.04470079]
[1644204576906,0.00529921,42806.0,42804.0,0.04470079]
[1644204577103,0.00529921,42806.0,42802.0,0.21542745]
[1644204577303,0.003,42812.0,42802.0,0.21542745]
[1644204577304,0.00529921,42807.0,42802.0,0.21542745]
[1644204577557,0.26089855,42807.0,42802.0,0.21542745]
[1644204577759,0.26089855,42807.0,42802.0,0.00064541]
[1644204577959,0.2840074,42821.0,42806.0,0.04470079]
[1644204578158,0.00138527,42826.0,42816.0,0.04470079]
[1644204578359,0.327183,42825.0,42816.0,0.04470079]
[1644204578560,0.00138527,42826.0,42816.0,0.04470079]
[1644204578758,0.001,42826.0,42816.0,0.04470079]
[1644204578958,0.001,42826.0,42800.0,0.48951846]
[1644204578959,0.3785228,42820.0,42818.0,0.00064522]
[1644204579157,0.327183,42819.0,42818.0,0.00064522]
[1644204579358,0.327183,42819.0,42818.0,5.22e-06]
[1644204579359,0.38248221,42819.0,42818.0,5.22e-06]
[1644204579560,0.43238221,42819.0,42818.0,5.22e-06]
[1644204579764,0.05,42814.0,42803.0,1.355e-05]
[1644204579960,0.427083,42819.0,42795.0,0.2221]
[1644204579961,0.04998645,42804.0,42795.0,0.2221]
[1644204580159,0.04998645,42797.0,42795.0,0.2221]
[1644204580363,0.327183,42796.0,42795.0,0.2221]
[1644204580560,0.5795362,42813.0,42795.0,0.2221]
[1644204580561,0.04998645,42802.0,42795.0,0.2221]
[1644204580960,0.4431593,42810.0,42795.0,0.2221]
[1644204580961,0.46183467,42813.0,42795.0,0.2221]
[1644204581210,0.04998645,42806.0,42795.0,0.2221]
[1644204581398,0.02331,42816.0,42798.0,0.05]
[1644204581697,0.24785674,42801.0,42796.0,0.25095132]
[1644204581897,0.25675923,42802.0,42795.0,0.61542479]
[1644204582097,0.0001,42800.0,42795.0,0.61542479]
[1644204582297,0.0001,42800.0,42795.0,0.2221]
[1644204582599,0.0421,42801.0,42795.0,0.2221]
[1644204583005,0.06378088,42796.0,42795.0,0.2221]
[1644204583201,0.98219443,42796.0,42795.0,0.0367]
[1644204583399,0.98219443,42796.0,42778.0,0.27167221]
[1644204583400,0.0752622,42786.0,42778.0,0.27167221]
[1644204583599,0.0752622,42786.0,42758.0,0.13426217]
[1644204583600,0.07804673,42789.0,42774.0,0.4]
[1644204583800,0.7531622,42795.0,42793.0,0.0006449]
[1644204583999,0.327183,42794.0,42793.0,0.0006449]
[1644204584400,0.05,42800.0,42793.0,0.0006449]
[1644204584401,0.05,42795.0,42793.0,0.0006449]
[1644204584601,0.327183,42794.0,42793.0,0.0006449]
[1644204584801,0.327183,42794.0,42782.0,0.29491751]
[1644204584802,0.377183,42794.0,42782.0,0.05]
[1644204585054,0.327183,42793.0,42792.0,0.00064492]
[1644204586054,0.327183,42793.0,42790.0,0.00064494]
[1644204586256,0.417393,42792.0,42790.0,0.00064494]
[1644204586555,0.327183,42791.0,42790.0,0.00064494]
[1644204587156,0.327183,42791.0,42785.0,0.26676593]
[1644204587458,0.09021,42792.0,42789.0,0.20130214]
[1644204587758,0.09021,42792.0,42789.0,0.26929812]
[1644204587955,0.09021,42792.0,42788.0,0.05052883]
[1644204588259,0.013,42792.0,42788.0,0.0511131]
[1644204588458,0.0001,42800.0,42791.0,0.05]
[1644204588711,0.0001,42800.0,42799.0,0.05]
[1644204588901,0.0001,42800.0,42799.0,0.35752547]
[1644204589100,0.0001,42800.0,42799.0,0.31826752]
[1644204589501,0.0001,42800.0,42799.0,0.05]
[1644204589702,0.0001,42800.0,42797.0,0.00052872]
[1644204589903,0.23079497,42798.0,42797.0,0.00052872]
[1644204590104,0.55797797,42798.0,42797.0,0.00052872]
[1644204590303,0.55797797,42798.0,42797.0,0.01352872]
[1644204590504,0.0021,42800.0,42797.0,0.06352872]
[1644204590704,0.0021,42800.0,42797.0,0.00852872]
[1644204591010,0.0021,42800.0,42797.0,2.872e-05]
[1644204591206,0.0021,42800.0,42796.0,0.00064457]
[1644204591207,0.85,42798.0,42796.0,0.00064457]
[1644204591407,0.85,42798.0,42779.0,0.05]
[1644204591408,6.172e-05,42791.0,42779.0,0.05]
[1644204591606,0.327183,42790.0,42779.0,0.05]
[1644204591807,0.0001,42800.0,42791.0,0.47420732]
[1644204592005,0.236405,42793.0,42784.0,0.23259665]
[1644204592444,0.26672248,42786.0,42784.0,0.02074018]
[1644204592644,0.32719,42785.0,42776.0,0.05]
[1644204592844,0.32719,42779.0,42776.0,0.05]
[1644204593045,0.02074018,42785.0,42776.0,0.05]
[1644204593245,0.01074018,42785.0,42773.0,0.2701164]
[1644204593443,0.23191147,42777.0,42776.0,0.24266046]
[1644204593746,0.01074018,42785.0,42776.0,0.29266046]
[1644204594143,0.05,42786.0,42776.0,0.29266046]
[1644204594344,0.011,42785.0,42776.0,0.24266046]
[1644204594543,0.26161136,42782.0,42776.0,0.24266046]
[1644204594844,0.011,42785.0,42776.0,0.24266046]
[1644204595048,0.011,42785.0,42772.0,0.06100218]
[1644204595245,0.35006698,42785.0,42772.0,0.06100218]
[1644204595443,0.07686745,42778.0,42773.0,0.05]
[1644204595644,0.07686745,42778.0,42772.0,0.06100218]
[1644204595646,0.22364199,42779.0,42772.0,0.06100218]
[1644204595844,0.22364199,42779.0,42776.0,0.00064482]
[1644204596045,0.05,42786.0,42776.0,0.05064482]
[1644204596319,0.05,42786.0,42779.0,0.05]
[1644204596717,0.02370536,42792.0,42779.0,0.05]
[1644204596916,0.5,42798.0,42789.0,0.05]
[1644204597116,0.0003954,42792.0,42791.0,0.20473925]
[1644204597516,0.0003954,42792.0,42791.0,0.53192925]
[1644204597716,0.0921054,42808.0,42792.0,0.7]
[1644204598015,0.0921054,42808.0,42791.0,0.19973925]
[1644204598016,0.20602371,42792.0,42791.0,0.19973925]
[1644204598215,0.09021,42807.0,42791.0,0.19973925]
[1644204598615,0.02039099,42805.0,42791.0,0.19973925]
[1644204598819,0.02039099,42805.0,42792.0,0.27267932]
[1644204599015,0.02039099,42805.0,42798.0,0.23886087]
[1644204599216,0.11060099,42805.0,42804.0,0.05]
[1644204599418,0.11060099,42805.0,42804.0,0.327137]
[1644204599617,0.32719,42804.0,42797.0,0.05]
[1644204599816,0.4174,42804.0,42791.0,0.0209399]
[1644204600055,0.32719,42803.0,42791.0,0.0209399]
[1644204600254,0.50761,42803.0,42791.0,0.0209399]
[1644204600454,0.32719,42801.0,42791.0,0.0209399]
[1644204600654,0.32719,42801.0,42795.0,0.05]
[1644204600856,0.32719,42801.0,42791.0,0.0209399]
[1644204600858,0.18042,42803.0,42791.0,0.0209399]
[1644204600859,0.23483436,42798.0,42791.0,0.0209399]
[1644204601054,0.09021,42797.0,42792.0,0.05]
[1644204601254,0.09021,42797.0,42791.0,0.0209399]
[1644204601460,0.06986297,42796.0,42791.0,0.0063399]
[1644204601655,0.32719,42795.0,42791.0,0.2221]
[1644204601859,0.08176759,42783.0,42777.0,0.19459947]
[1644204602057,0.346456,42794.0,42788.0,0.00064468]
[1644204602257,0.346456,42794.0,42776.0,0.0103]
[1644204602258,0.06874556,42781.0,42776.0,0.00422398]
[1644204602457,0.06874556,42781.0,42780.0,0.02085692]
[1644204602755,0.06874556,42781.0,42772.0,0.01508225]
[1644204602756,0.21830746,42777.0,42772.0,0.01508225]
[1644204603355,0.02085692,42781.0,42773.0,0.05]
[1644204603559,0.02085692,42781.0,42776.0,0.05]
[1644204603824,0.17046565,42783.0,42772.0,0.01508225]
[1644204604017,0.30433076,42782.0,42774.0,0.25747623]
[1644204604213,0.30433076,42782.0,42772.0,0.01508225]
[1644204604214,0.07386117,42774.0,42772.0,0.01508225]
[1644204604419,0.30035335,42773.0,42772.0,0.01508225]
[1644204604612,0.07286117,42774.0,42772.0,0.01508225]
[1644204604613,0.12286117,42774.0,42772.0,0.01508225]
[1644204604818,0.12286117,42774.0,42767.0,0.24]
[1644204605024,0.12286117,42774.0,42762.0,0.042]
[1644204605025,0.23355146,42772.0,42762.0,0.042]
[1644204605216,0.23355146,42772.0,42762.0,0.0001]
[1644204605217,0.32719,42771.0,42762.0,0.0001]
[1644204605413,0.85,42770.0,42755.0,0.19459947]
[1644204605614,0.0878156,42756.0,42755.0,0.19459947]
[1644204605814,0.0878156,42756.0,42754.0,0.29220218]
[1644204605815,0.05,42756.0,42754.0,0.29220218]
[1644204606017,1.12986366,42770.0,42754.0,0.34220218]
[1644204606216,0.71613052,42769.0,42759.0,0.19825522]
[1644204606422,0.85,42755.0,42747.0,0.1]
[1644204606623,0.67331221,42754.0,42747.0,0.0841]
[1644204606818,0.0393,42753.0,42747.0,0.0552]
[1644204607021,0.0393,42752.0,42747.0,0.0552]
[1644204607218,0.327273,42751.0,42747.0,0.0552]
[1644204607467,0.06625636,42743.0,42732.0,0.34700076]
[1644204607657,0.06625636,42743.0,42731.0,0.34700076]
[1644204607859,0.26563814,42748.0,42737.0,0.05]
[1644204608257,0.31563814,42748.0,42737.0,0.05]
[1644204608460,0.31793529,42747.0,42736.0,0.00064531]
[1644204609058,0.0393,42746.0,42734.0,1.05]
[1644204609261,0.0393,42746.0,42742.0,0.00954649]
[1644204609462,0.23824428,42730.0,42729.0,0.31512751]
[1644204609660,0.23824428,42730.0,42717.0,0.17681]
[1644204609661,0.39884615,42730.0,42717.0,0.17681]
[1644204609860,0.39884615,42730.0,42718.0,0.23409]
[1644204609861,0.05,42725.0,42718.0,0.23409]
[1644204610059,0.0393,42725.0,42718.0,0.32397]
[1644204610259,0.0393,42725.0,42719.0,0.462073]
[1644204610458,0.0473,42725.0,42720.0,0.43752954]
[1644204610659,0.0473,42725.0,42720.0,0.151438]
[1644204610860,0.0473,42725.0,42719.0,0.36888]
[1644204611061,0.07567427,42724.0,42719.0,0.18298]
[1644204611301,0.12567427,42724.0,42719.0,0.18298]
[1644204611502,0.327273,42723.0,42719.0,0.00052105]
[1644204611909,0.31277848,42724.0,42719.0,0.00052105]
[1644204612098,0.327273,42723.0,42719.0,0.00052105]
[1644204612299,0.39206457,42722.0,42719.0,0.00052105]
[1644204612499,0.39206457,42722.0,42717.0,0.042]
[1644204612699,0.39206457,42722.0,42718.0,0.00064232]
[1644204612900,0.44206457,42722.0,42718.0,0.00064232]
[1644204613100,0.327347,42721.0,42718.0,0.00064232]
[1644204613302,0.327347,42720.0,42718.0,0.00064232]
[1644204613501,0.38298514,42719.0,42718.0,0.00064232]
[1644204613701,0.71033214,42719.0,42717.0,0.042]
[1644204613901,0.72946579,42718.0,42717.0,0.042]
[1644204614202,1.177347,42717.0,42710.0,0.00256978]
[1644204614404,0.12535771,42711.0,42710.0,0.00256978]
[1644204614601,0.49670616,42711.0,42710.0,0.00256978]
[1644204614802,0.82405316,42711.0,42709.0,0.38276978]
[1644204615061,0.0393,42711.0,42709.0,0.38276978]
[1644204616061,0.05,42710.0,42709.0,0.38276978]
[1644204616559,0.0403,42711.0,42709.0,0.35776978]
[1644204616764,0.000418,42712.0,42711.0,0.85]
[1644204616765,0.040718,42712.0,42711.0,0.85]
[1644204617065,0.05,42733.0,42711.0,0.85]
[1644204617066,0.5,42745.0,42713.0,0.85]
[1644204617264,0.5,42745.0,42718.0,0.999]
[1644204617265,0.59021,42745.0,42718.0,0.999]
[1644204617566,0.59021,42745.0,42738.0,0.54276525]
[1644204617567,0.09021,42745.0,42738.0,0.54276525]
[1644204617760,0.09021,42745.0,42740.0,0.327347]
[1644204617761,0.22553,42745.0,42740.0,0.327347]
[1644204617959,0.22553,42744.0,42740.0,0.327347]
[1644204618361,0.22553,42744.0,42730.0,0.377347]
[1644204618559,0.09021,42739.0,42734.0,0.24304405]
[1644204618799,0.22553,42738.0,42735.0,0.61349405]
[1644204619001,0.22553,42738.0,42735.0,0.327347]
[1644204619204,0.22553,42738.0,42720.0,0.05]
[1644204619205,0.05,42736.0,42725.0,0.1]
[1644204619402,0.22553,42735.0,42725.0,0.1]
[1644204619608,0.09021,42734.0,42725.0,0.1]
[1644204619803,0.09021,42734.0,42721.0,0.31180297]
[1644204619804,0.22553,42734.0,42721.0,0.31180297]
[1644204620103,0.17783288,42728.0,42714.0,0.34420529]
[1644204620303,0.09021,42727.0,42714.0,0.34420529]
[1644204620501,0.09021,42727.0,42715.0,0.327347]
[1644204620701,0.22553,42727.0,42716.0,0.327347]
[1644204620902,0.22553,42727.0,42718.0,0.327347]
[1644204621101,0.09021,42727.0,42722.0,0.25797611]
[1644204621302,0.00041759,42724.0,42722.0,0.25797611]
[1644204621501,0.00041759,42724.0,42723.0,0.327347]
[1644204621902,0.15,42744.0,42740.0,0.39343892]
[1644204622102,0.0180695,42730.0,42725.0,0.31252345]
[1644204622306,0.1,42744.0,42724.0,0.35]
[1644204622550,0.1,42744.0,42724.0,0.05]
[1644204622551,0.08565229,42732.0,42724.0,0.05]
[1644204622752,0.2,42744.0,42729.0,0.0180695]
[1644204623051,0.327347,42742.0,42729.0,0.0180695]
[1644204623252,0.05,42739.0,42729.0,0.0180695]
[1644204623451,0.144751,42738.0,42729.0,0.0180695]
[1644204623652,0.144751,42738.0,42722.0,0.05]
[1644204623653,0.12571895,42737.0,42722.0,0.05]
[1644204623850,0.0644809,42731.0,42721.0,0.05]
[1644204624050,0.0644809,42731.0,42721.0,0.31099539]
[1644204624051,0.327314,42730.0,42721.0,0.31099539]
[1644204624250,0.0812105,42724.0,42721.0,0.05]
[1644204624451,0.05,42730.0,42721.0,0.009]
[1644204624753,0.003,42731.0,42721.0,0.009]
[1644204624955,0.00012527,42726.0,42721.0,0.009]
[1644204625452,0.08421584,42724.0,42721.0,0.009]
[1644204625652,0.08421584,42724.0,42714.0,0.28204599]
[1644204625953,0.13421584,42724.0,42714.0,0.28204599]
[1644204626199,0.13421584,42724.0,42718.0,0.05]
[1644204626402,0.13421584,42724.0,42710.0,0.2941614]
[1644204626403,0.05,42719.0,42709.0,0.36034067]
[1644204626606,0.26372847,42718.0,42709.0,0.36034067]
[1644204626902,0.26372847,42718.0,42699.0,0.02002413]
[1644204626903,1.96927461,42711.0,42699.0,0.02002413]
[1644204627101,0.72549155,42710.0,42699.0,0.02002413]
[1644204627402,0.07817438,42708.0,42699.0,0.02002413]
[1644204627603,0.66482615,42707.0,42699.0,0.02002413]
[1644204628002,0.0393,42706.0,42699.0,0.02002413]
[1644204628200,0.64483293,42705.0,42699.0,0.02002413]
[1644204628403,0.64483293,42705.0,42702.0,6.81e-06]
[1644204628404,0.85,42704.0,42702.0,6.81e-06]
[1644204628602,0.7246058,42703.0,42699.0,0.02002413]
[1644204628802,0.6375018,42703.0,42702.0,0.22898]
[1644204629004,0.6375018,42703.0,42684.0,0.50022588]
[1644204629005,0.06614453,42687.0,42684.0,0.50022588]
[1644204629202,0.0393,42694.0,42684.0,0.50022588]
[1644204629402,0.0393,42688.0,42686.0,0.05]
[1644204629600,0.05,42692.0,42684.0,0.50022588]
[1644204629803,0.1,42692.0,42684.0,0.50022588]
[1644204630257,0.1,42692.0,42686.0,0.05]
[1644204630458,0.103,42692.0,42686.0,0.05]
[1644204630654,0.103,42692.0,42688.0,0.24163296]
[1644204630854,0.103,42692.0,42688.0,0.19163296]
[1644204631054,0.103,42692.0,42689.0,0.05]
[1644204631260,0.003,42692.0,42690.0,0.6936315]
[1644204631457,0.003,42692.0,42691.0,0.29234693]
[1644204631655,0.003,42692.0,42688.0,0.459408]
[1644204631861,0.003,42692.0,42691.0,0.05]
[1644204632061,0.05,42699.0,42693.0,0.156968]
[1644204632062,0.0202788,42698.0,42693.0,0.156968]
[1644204632257,0.05,42710.0,42697.0,0.56826395]
[1644204632457,1.96969796,42711.0,42697.0,0.19094995]
[1644204632656,0.327314,42710.0,42697.0,0.0202788]
[1644204632858,0.08080653,42706.0,42697.0,0.0202788]
[1644204633057,0.08080653,42706.0,42698.0,0.05]
[1644204633257,0.327314,42705.0,42699.0,0.00064185]
[1644204634105,0.327314,42705.0,42700.0,0.05]
[1644204634305,0.327314,42705.0,42702.0,0.05]
[1644204634505,0.329314,42705.0,42702.0,0.05]
[1644204634706,1.86361968,42711.0,42700.0,0.00064185]
[1644204634905,0.08085295,42702.0,42700.0,0.00064185]
[1644204635108,0.100401,42701.0,42700.0,0.00064185]
[1644204635308,1.177419,42700.0,42699.0,4.185e-05]
[1644204635708,1.177419,42700.0,42697.0,0.00103952]
[1644204635709,1.253559,42700.0,42697.0,0.00103952]
[1644204635907,0.100401,42699.0,42697.0,0.00103952]
[1644204636308,0.150401,42699.0,42697.0,0.00103952]
[1644204636607,0.153401,42699.0,42697.0,0.00103952]
[1644204636907,0.5098953,42699.0,42697.0,3.952e-05]
[1644204637308,0.5598953,42699.0,42697.0,3.952e-05]
[1644204637553,0.1998953,42699.0,42697.0,3.952e-05]
[1644204637754,0.46261,42698.0,42685.0,0.00098944]
[1644204637953,0.06851078,42690.0,42685.0,0.00098944]
[1644204638550,0.004,42690.0,42685.0,0.00098944]
[1644204638753,0.004,42690.0,42659.0,0.17621206]
[1644204638754,0.85,42689.0,42659.0,0.17621206]
[1644204638959,0.85,42689.0,42642.0,0.05859904]
[1644204638960,0.85,42664.0,42642.0,0.05859904]
[1644204639157,0.85,42664.0,42638.0,0.24861842]
[1644204639158,0.05,42658.0,42638.0,0.24861842]
[1644204639357,0.52245433,42663.0,42645.0,0.00030864]
[1644204639358,0.384682,42657.0,42645.0,0.00030864]
[1644204639557,0.08787062,42649.0,42645.0,0.00030864]
[1644204639753,0.85505872,42648.0,42645.0,0.00061728]
[1644204639957,0.81823945,42648.0,42645.0,0.00061728]
[1644204640154,0.57745632,42648.0,42645.0,0.00061728]
[1644204640355,0.058658,42647.0,42645.0,0.05123456]
[1644204640554,0.058658,42647.0,42645.0,0.00123456]
[1644204640555,0.327419,42646.0,42645.0,0.00123456]
[1644204640758,0.327419,42646.0,42644.0,0.00051496]
[1644204640759,0.366719,42646.0,42644.0,0.00051496]
[1644204640956,0.456929,42646.0,42644.0,0.00051496]
[1644204641210,0.456929,42646.0,42645.0,0.40065265]
[1644204641211,0.0393,42646.0,42645.0,0.40065265]
[1644204641606,0.09021,42659.0,42646.0,0.85]
[1644204641809,0.44256164,42666.0,42661.0,0.327419]
[1644204641810,0.09021,42666.0,42661.0,0.327419]
[1644204642020,0.31611589,42681.0,42664.0,0.02323365]
[1644204642207,0.76,42692.0,42680.0,0.25951949]
[1644204642208,0.05,42690.0,42680.0,0.25951949]
[1644204642407,0.05,42690.0,42681.0,0.02288709]
[1644204642408,0.02711291,42686.0,42681.0,0.02288709]
[1644204642606,0.23493,42690.0,42684.0,0.02288709]
[1644204642806,0.02711291,42697.0,42684.0,0.02288709]
[1644204643007,0.08093196,42691.0,42684.0,0.02288709]
[1644204643207,0.08093196,42691.0,42680.0,0.18770982]
[1644204643208,0.327419,42696.0,42689.0,0.02288709]
[1644204643412,0.327419,42696.0,42681.0,0.00064175]
[1644204643413,0.327419,42696.0,42688.0,0.20767913]
[1644204643608,0.0001,42700.0,42690.0,0.02288709]
[1644204643609,0.001,42692.0,42690.0,0.02288709]
[1644204644108,0.001,42692.0,42681.0,0.00064175]
[1644204644109,0.02711291,42691.0,42681.0,0.00064175]
[1644204644311,0.02711291,42684.0,42669.0,0.02288709]
[1644204644511,0.02711291,42684.0,42682.0,0.00256703]
[1644204644512,0.17690113,42683.0,42682.0,0.00256703]
[1644204644711,0.88398229,42683.0,42682.0,0.00256703]
[1644204644962,2.30833926,42677.0,42664.0,0.02288709]
[1644204645257,0.1268329,42674.0,42665.0,0.20849769]
[1644204645656,0.02711291,42673.0,42665.0,0.20849769]
[1644204645855,0.29850735,42673.0,42665.0,0.20849769]
[1644204646061,0.12894581,42674.0,42665.0,0.20849769]
[1644204646257,0.12894581,42674.0,42672.0,0.20802645]
[1644204646456,0.330419,42673.0,42663.0,0.04788709]
[1644204646658,0.3080586,42672.0,42663.0,0.04788709]
[1644204646857,0.3080586,42672.0,42667.0,0.04788709]
[1644204646858,0.100401,42671.0,42667.0,0.04788709]
[1644204647061,0.327419,42670.0,42667.0,0.04788709]
[1644204647259,0.377419,42670.0,42667.0,0.04788709]
[1644204647459,0.100401,42668.0,42665.0,0.21389713]
[1644204647659,0.05,42670.0,42665.0,0.21389713]
[1644204647861,0.05,42670.0,42663.0,0.04788709]
[1644204648062,0.64847246,42669.0,42664.0,0.00064176]
[1644204648262,0.10251391,42665.0,42664.0,0.00064176]
[1644204648461,0.53989153,42665.0,42664.0,0.00064176]
[1644204648707,0.58989153,42665.0,42664.0,0.00064176]
[1644204648905,0.58989153,42665.0,42664.0,1.76e-06]
[1644204648906,0.77525094,42665.0,42664.0,1.76e-06]
[1644204649105,0.327419,42663.0,42654.0,0.02184441]
[1644204649305,0.058646,42658.0,42654.0,0.02184441]